fUSD/lending_fUSD_20250417
["ID","MTS","AMOUNT","RATE_DAILY","PERIOD"]
[358314643,1744925443340,-1963.46,0.00072499,120]
[358314644,1744925443350,-1963.46,0.00072499,120]
[358314645,1744925443359,-1963.46,0.00072499,120]
[358314646,1744925443368,-300.0,0.00072662,120]
[358314647,1744925443377,-500.0,0.00072999,120]
[358314648,1744925443386,-500.0,0.00072999,120]
[358314649,1744925443396,-500.0,0.00072999,120]
[358314650,1744925443406,-21479.4,0.00072999,7]
[358314651,1744925443415,-500.0,0.00072999,120]
[358314652,1744925443424,-500.0,0.00072999,120]
[358314653,1744925443434,-677.58,0.00072999,120]
[358314654,1744925443443,-500.0,0.00072999,120]
[358314655,1744925443455,-500.0,0.00072999,120]
[358314656,1744925443465,-712.2,0.00072999,120]
[358314657,1744925443474,-500.0,0.00072999,120]
[358314658,1744925443484,-587.79,0.00072999,120]
[358314659,1744925443495,-2834.74,0.00072999,120]
[358314660,1744925443505,-500.0,0.00072999,120]
[358314661,1744925443515,-500.0,0.00072999,120]
[358314662,1744925443524,-50000.0,0.00073,73]
[358314663,1744925443533,-6574.06495874,0.00073029,15]
[358314664,1744925443546,-1104.0,0.00073032,60]
[358314665,1744925443556,-500.0,0.00073999,120]
[358314666,1744925443565,-50000.0,0.00074,74]
[358314667,1744925443575,-574.53,0.00074059,2]
[358314668,1744925443584,-1963.46,0.00074061,120]
[358314669,1744925443594,-200.0,0.00074928,120]
[358314670,1744925443603,-500.0,0.00074988,2]
[358314671,1744925443613,-50000.0,0.00075,75]
[358314672,1744925443623,-151.0,0.00075,120]
[358314673,1744925443632,-500.0,0.0007526,2]
[358314674,1744925443642,-1963.46,0.00075451,120]
[358314675,1744925443651,-1963.46,0.00075451,120]
[358314676,1744925443660,-1963.46,0.00075451,120]
[358314677,1744925443670,-1963.46,0.00075451,120]
[358314678,1744925443679,-1963.52985373,0.00075451,120]
[358314679,1744925443689,-677.58,0.00075989,120]
[358314680,1744925443698,-151.0,0.0007599,120]
[358314681,1744925443708,-50000.0,0.00076,76]
[358314682,1744925443717,-574.53,0.00076323,2]
[358314683,1744925443727,-500.0,0.00076566,120]
[358314684,1744925443736,-1000.0,0.00076636,14]
[358314685,1744925443745,-150.0,0.00076731,60]
[358314686,1744925443755,-150.0,0.00076732,60]
[358314687,1744925443764,-150.0,0.00076733,60]
[358314688,1744925443779,-150.0,0.00076734,60]
[358314689,1744925443788,-150.0,0.00076737,60]
[358314690,1744925443799,-150.0,0.00076737,60]
[358314691,1744925443809,-150.0,0.00076739,60]
[358314692,1744925443818,-150.0,0.00076741,60]
[358314693,1744925443833,-150.0,0.00076741,60]
[358314694,1744925443842,-150.0,0.00076743,60]
[358314695,1744925443851,-150.0,0.00076745,60]
[358314696,1744925443861,-150.0,0.00076749,60]
[358314697,1744925443871,-150.0,0.0007675,60]
[358314698,1744925443880,-150.0,0.00076751,60]
[358314699,1744925443890,-150.0,0.00076752,60]
[358314700,1744925443899,-150.0,0.00076752,60]
[358314701,1744925443908,-150.0,0.00076754,60]
[358314702,1744925443918,-150.0,0.00076757,60]
[358314703,1744925443927,-150.0,0.00076764,60]
[358314704,1744925443937,-150.0,0.00076767,60]
[358314705,1744925443946,-150.0,0.00076771,60]
[358314706,1744925443956,-150.0,0.00076773,60]
[358314707,1744925443965,-150.0,0.00076775,60]
[358314708,1744925443974,-150.0,0.00076776,60]
[358314709,1744925443984,-150.0,0.0007678,60]
[358314710,1744925443993,-150.0,0.00076782,60]
[358314711,1744925444003,-150.0,0.00076783,60]
[358314712,1744925444012,-150.0,0.00076785,60]
[358314713,1744925444021,-150.0,0.00076785,60]
[358314714,1744925444031,-150.0,0.00076794,60]
[358314715,1744925444041,-150.0,0.00076797,60]
[358314716,1744925444050,-150.0,0.00076799,60]
[358314717,1744925444060,-150.0,0.00076799,60]
[358314718,1744925444070,-150.0,0.00076804,60]
[358314719,1744925444079,-150.0,0.00076807,60]
[358314720,1744925444089,-150.0,0.00076809,60]
[358314721,1744925444099,-150.0,0.0007681,60]
[358314722,1744925444108,-150.0,0.00076815,60]
[358314723,1744925444118,-150.0,0.00076815,60]
[358314724,1744925444127,-150.0,0.00076816,60]
[358314725,1744925444136,-150.0,0.00076823,60]
[358314726,1744925444145,-150.0,0.00076828,60]
[358314727,1744925444155,-150.0,0.00076832,60]
[358314728,1744925444164,-150.0,0.00076834,60]
[358314729,1744925444173,-150.0,0.00076834,60]
[358314730,1744925444182,-150.0,0.0007684,60]
[358314731,1744925444191,-150.0,0.0007684,60]
[358314732,1744925444199,-150.0,0.00076846,60]
[358314733,1744925444208,-150.0,0.00076851,60]
[358314734,1744925444218,-150.0,0.00076855,60]
[358314735,1744925444227,-150.0,0.00076856,60]
[358314736,1744925444236,-150.0,0.0007686,60]
[358314737,1744925444245,-150.0,0.00076864,60]
[358314738,1744925444254,-150.0,0.00076865,60]
[358314739,1744925444264,-150.0,0.00076865,60]
[358314740,1744925444273,-150.0,0.00076866,60]
[358314741,1744925444282,-150.0,0.00076876,60]
[358314742,1744925444292,-150.0,0.0007688,60]
[358314743,1744925444302,-150.0,0.00076886,60]
[358314744,1744925444311,-150.0,0.00076888,60]
[358314745,1744925444320,-165.36811533,0.0007689,60]
[358314746,1744925444329,-150.0,0.0007689,60]
[358314747,1744925444339,-150.0,0.00076892,60]
[358314748,1744925444348,-150.0,0.00076892,60]
[358314749,1744925444357,-150.0,0.00076892,60]
[358314750,1744925444368,-150.0,0.00076894,60]
[358314751,1744925444378,-150.0,0.00076895,60]
[358314752,1744925444388,-150.0,0.00076895,60]
[358314753,1744925444398,-150.0,0.00076896,60]
[358314754,1744925444407,-900.0,0.000769,28]
[358314755,1744925444417,-150.0,0.00076902,60]
[358314756,1744925444426,-150.0,0.00076902,60]
[358314757,1744925444435,-150.0,0.00076903,60]
[358314758,1744925444445,-150.0,0.00076906,60]
[358314759,1744925444456,-150.0,0.00076908,60]
[358314760,1744925444465,-150.0,0.00076912,60]
[358314761,1744925444475,-150.0,0.00076914,60]
[358314762,1744925444485,-150.0,0.00076917,60]
[358314763,1744925444495,-150.0,0.00076921,60]
[358314764,1744925444505,-150.0,0.00076924,60]
[358314765,1744925444514,-150.0,0.00076932,60]
[358314766,1744925444524,-150.0,0.00076941,60]
[358314767,1744925444535,-150.0,0.00076941,60]
[358314768,1744925444546,-150.0,0.00076956,60]
[358314769,1744925444555,-150.0,0.00076958,60]
[358314770,1744925444564,-150.0,0.00076958,60]
[358314771,1744925444573,-150.0,0.00076959,60]
[358314772,1744925444681,-150.0,0.00076964,60]
[358314773,1744925444690,-150.0,0.00076966,60]
[358314774,1744925444700,-150.0,0.0007697,60]
[358314775,1744925444708,-150.0,0.00076971,60]
[358314776,1744925444718,-150.0,0.00076973,60]
[358314777,1744925444727,-150.0,0.00076978,60]
[358314778,1744925444736,-150.0,0.00076981,60]
[358314779,1744925444745,-150.0,0.00076981,60]
[358314780,1744925444756,-150.0,0.00076985,60]
[358314781,1744925444765,-150.0,0.00076987,60]
[358314782,1744925444775,-150.0,0.00076987,60]
[358314783,1744925444785,-150.0,0.00076987,60]
[358314784,1744925444794,-500.0,0.00076988,120]
[358314785,1744925444804,-500.0,0.00076988,120]
[358314786,1744925444813,-500.0,0.00076988,120]
[358314787,1744925444822,-21479.4,0.00076988,7]
[358314788,1744925444832,-500.0,0.00076988,120]
[358314789,1744925444842,-500.0,0.00076988,120]
[358314790,1744925444852,-500.0,0.00076988,120]
[358314791,1744925444861,-500.0,0.00076988,120]
[358314792,1744925444871,-712.2,0.00076988,120]
[358314793,1744925444880,-500.0,0.00076988,120]
[358314794,1744925444890,-587.79,0.00076988,120]
[358314795,1744925444900,-2834.74,0.00076988,120]
[358314796,1744925444909,-500.0,0.00076988,120]
[358314797,1744925444919,-500.0,0.00076989,120]
[358314798,1744925444929,-150.0,0.00076992,60]
[358314799,1744925444938,-150.0,0.00076994,60]
[358314800,1744925444948,-150.0,0.00076994,60]
[358314801,1744925444958,-500.0,0.00076998,2]
[358314802,1744925444967,-500.0,0.00076999,120]
[358314803,1744925444977,-500.0,0.00076999,120]
[358314804,1744925444986,-500.0,0.00076999,120]
[358314805,1744925444996,-50000.0,0.00077,77]
[358314806,1744925445006,-1000.0,0.00077,2]
[358314807,1744925445015,-2000.0,0.00077151,4]
[358314808,1744925445026,-1220.21782091,0.00077233,15]
[358314809,1744925445036,-1000.0,0.00077388,120]
[358314810,1744925445045,-522.63719094,0.000774,120]
[358314811,1744925445055,-150.0,0.000774,120]
[358314812,1744925445065,-253.55229738,0.000774,2]
[358314813,1744925445075,-837.1509414,0.000774,2]
[358314814,1744925445084,-1804.09144848,0.000774,2]
[358314815,1744925445095,-4096.45766223,0.000774,2]
[358314816,1744925445104,-171.70756229,0.000774,16]
[358314817,1744925445114,-214.73392249,0.000774,2]
[358314818,1744925445123,-677.58,0.00077497,120]
[358314819,1744925445133,-50000.0,0.00077498,2]
[358314820,1744925445142,-151.0,0.00077498,120]
[358314821,1744925445151,-151.0,0.00077498,120]
[358314822,1744925445161,-151.0,0.00077498,120]
[358314823,1744925445171,-500.0,0.00077498,120]
[358314824,1744925445180,-500.0,0.00077498,120]
[358314825,1744925445189,-500.0,0.00077498,120]
[358314826,1744925445199,-500.0,0.00077498,120]
[358314827,1744925445208,-21479.4,0.00077498,7]
[358314828,1744925445218,-500.0,0.00077498,120]
[358314829,1744925445227,-500.0,0.00077498,120]
[358314830,1744925445236,-500.0,0.00077498,120]
[358314831,1744925445246,-500.0,0.00077498,120]
[358314832,1744925445256,-500.0,0.00077498,120]
[358314833,1744925445266,-712.2,0.00077498,120]
[358314834,1744925445276,-500.0,0.00077498,120]
[358314835,1744925445286,-587.79,0.00077498,120]
[358314836,1744925445295,-2834.74,0.00077498,120]
[358314837,1744925445304,-204.65995969,0.00077498,120]
[358314838,1744925445314,-500.0,0.00077498,120]
[358314839,1744925445323,-151.0,0.00077499,120]
[358314840,1744925445332,-500.0,0.00077499,2]
[358314841,1744925445342,-500.0,0.00077499,2]
[358314842,1744925445351,-500.0,0.00077499,2]
[358314843,1744925445360,-500.0,0.00077499,2]
[358314844,1744925445369,-500.0,0.00077499,120]
[358314845,1744925445379,-500.0,0.00077499,120]
[358314846,1744925445389,-500.0,0.00077499,120]
[358314847,1744925445398,-500.0,0.00077499,120]
[358314848,1744925445407,-500.0,0.00077499,120]
[358314849,1744925445417,-500.0,0.00077499,120]
[358314850,1744925445426,-500.0,0.00077499,120]
[358314851,1744925445435,-500.0,0.00077499,90]
[358314852,1744925445445,-500.0,0.00077499,120]
[358314853,1744925445457,-300.0,0.00077499,60]
[358314854,1744925445466,-500.0,0.00077499,90]
[358314855,1744925445475,-500.0,0.00077499,90]
[358314856,1744925445485,-151.0,0.00077499,120]
[358314857,1744925445495,-151.0,0.00077499,120]
[358314858,1744925445504,-500.0,0.00077499,120]
[358314859,1744925445513,-530.8,0.00077499,120]
[358314860,1744925445524,-500.0,0.00077499,90]
[358314861,1744925445534,-21479.4,0.00077499,7]
[358314862,1744925445544,-21479.4,0.00077499,7]
[358314863,1744925445556,-21479.4,0.00077499,7]
[358314864,1744925445566,-500.0,0.00077499,120]
[358314866,1744925445577,-500.0,0.00077499,120]
[358314867,1744925445587,-500.0,0.00077499,120]
[358314868,1744925445597,-207.67486652,0.00077499,120]
[358314869,1744925445607,-500.0,0.00077499,120]
[358314870,1744925445616,-500.0,0.00077499,120]
[358314871,1744925445625,-500.0,0.00077499,120]
[358314872,1744925445635,-677.58,0.00077499,120]
[358314873,1744925445646,-677.58,0.00077499,120]
[358314874,1744925445655,-677.58,0.00077499,120]
[358314875,1744925445665,-677.58,0.00077499,120]
[358314876,1744925445675,-332.07788505,0.00077499,120]
[358314877,1744925445685,-500.0,0.00077499,120]
[358314878,1744925445694,-500.0,0.00077499,120]
[358314879,1744925445704,-500.0,0.00077499,120]
[358314880,1744925445714,-712.2,0.00077499,120]
[358314881,1744925445724,-712.2,0.00077499,120]
[358314882,1744925445734,-712.2,0.00077499,120]
[358314883,1744925445743,-300.0,0.00077499,60]
[358314884,1744925445752,-500.0,0.00077499,120]
[358314885,1744925445761,-500.0,0.00077499,120]
[358314886,1744925445771,-500.0,0.00077499,120]
[358314887,1744925445780,-587.79,0.00077499,120]
[358314888,1744925445790,-587.79,0.00077499,120]
[358314889,1744925445799,-587.79,0.00077499,120]
[358314890,1744925445809,-2834.74,0.00077499,120]
[358314891,1744925445818,-2834.74,0.00077499,120]
[358314892,1744925445828,-2834.74,0.00077499,120]
[358314893,1744925445837,-500.0,0.00077499,120]
[358314894,1744925445847,-500.0,0.00077499,120]
[358314895,1744925445857,-324.69,0.00077499,120]
[358314896,1744925445866,-848498.92935303,0.000775,120]
[358314897,1744925445876,-2000.0,0.000775,30]
[358314898,1744925445886,-200.0,0.000775,30]
[358314899,1744925445895,-151.0,0.000775,120]
[358314900,1744925445905,-151.0,0.000775,120]
[358314901,1744925445915,-151.0,0.000775,120]
[358314902,1744925445924,-153.62764,0.000775,120]
[358314903,1744925445933,-155.855058,0.000775,120]
[358314904,1744925445943,-151.0,0.000775,120]
[358314905,1744925445952,-151.0,0.000775,120]
[358314906,1744925445961,-151.0,0.000775,120]
[358314907,1744925445971,-207.4,0.000775,120]
[358314908,1744925445980,-151.0,0.000775,120]
[358314909,1744925445990,-151.0,0.000775,120]
[358314910,1744925446000,-3306.0604692,0.00077513,8]
[358314911,1744925446010,-6691.6015153,0.00077513,8]
[358314912,1744925446019,-54780.7911347,0.00077624,8]
[358314913,1744925446029,-500.0,0.00077845,120]
[358314914,1744925446038,-21479.4,0.00077845,7]
[358314915,1744925446047,-500.0,0.00077845,120]
[358314916,1744925446057,-500.0,0.00077845,120]
[358314917,1744925446066,-500.0,0.00077845,120]
[358314918,1744925446075,-712.2,0.00077845,120]
[358314919,1744925446085,-500.0,0.00077845,120]
[358314920,1744925446095,-587.79,0.00077845,120]
[358314921,1744925446104,-2834.74,0.00077845,120]
[358314922,1744925446114,-165.36811531,0.00077893,61]
[358314923,1744925446124,-1200.0,0.000779,28]
[358314924,1744925446133,-500.0,0.00077999,120]
[358314925,1744925446143,-500.0,0.00077999,90]
[358314926,1744925446152,-500.0,0.00077999,90]
[358314927,1744925446162,-500.0,0.00077999,90]
[358314928,1744925446172,-21479.4,0.00077999,7]
[358314929,1744925446182,-500.0,0.00077999,120]
[358314930,1744925446191,-500.0,0.00077999,120]
[358314931,1744925446201,-677.58,0.00077999,120]
[358314932,1744925446211,-677.58,0.00077999,120]
[358314933,1744925446220,-500.0,0.00077999,120]
[358314934,1744925446230,-712.2,0.00077999,120]
[358314935,1744925446240,-300.0,0.00077999,60]
[358314936,1744925446249,-500.0,0.00077999,120]
[358314937,1744925446259,-587.79,0.00077999,120]
[358314938,1744925446269,-2834.74,0.00077999,120]
[358314939,1744925446279,-50000.0,0.00078,78]
[358314940,1744925446288,-4244.750999,0.00078,120]
[358314941,1744925446298,-210030.84117464,0.00078,120]
[358314942,1744925446364,-175699.27882536,0.00078,120]
[358314943,1744925446373,-151.0,0.00078,120]
[358314944,1744925446383,-151.0,0.00078,120]
[358314945,1744925446392,-297.349385,0.00078,120]
[358314946,1744925446401,-151.0,0.00078,120]
[358314947,1744925446411,-151.0,0.00078,120]
[358314948,1744925446420,-270.265598,0.00078,120]
[358314949,1744925446430,-198.445958,0.00078,120]
[358314950,1744925446439,-1220.21782091,0.00078122,15]
[358314951,1744925446455,-172.09,0.00078191,2]
[358314952,1744925446465,-150.0,0.000784,120]
[358314953,1744925446475,-574.53,0.00078586,2]
[358314954,1744925446483,-522.63719093,0.00078633,120]
[358314955,1744925446492,-165.36811531,0.00078897,63]
[358314956,1744925446503,-500.0,0.00078999,2]
[358314957,1744925446512,-500.0,0.00078999,120]
[358314958,1744925446522,-226.15304804,0.00078999,120]
[358314959,1744925446532,-4386.1565406,0.00078999,7]
[358314960,1744925446543,-3976.2,0.00078999,7]
[358314961,1744925446554,-13117.0434594,0.00078999,7]
[358314962,1744925446564,-500.0,0.00078999,120]
[358314963,1744925446573,-500.0,0.00078999,120]
[358314964,1744925446582,-500.0,0.00078999,120]
[358314965,1744925446592,-712.2,0.00078999,120]
[358314966,1744925446601,-500.0,0.00078999,120]
[358314967,1744925446611,-587.79,0.00078999,120]
[358314968,1744925446619,-2834.74,0.00078999,120]
[358314969,1744925446628,-50000.0,0.00079,79]
[358314970,1744925446639,-11737.7,0.00079,120]
[358314971,1744925446652,-1220.21782091,0.00079011,15]
[358314972,1744925446661,-150.0,0.000794,120]
[358314973,1744925446671,-2230.0,0.00079478,100]
[358314974,1744925446680,-2000.0,0.000795,120]
[358314975,1744925446690,-6574.06495874,0.0007967,15]
[358314976,1744925446699,-2000.0,0.000797,120]
[358314977,1744925446708,-3283.75540042,0.000797,120]
[358314978,1744925446718,-1500.0,0.000797,29]
[358314979,1744925446727,-560.89958351,0.00079746,120]
[358314980,1744925446737,-200.89766106,0.00079767,120]
[358314981,1744925446747,-268.10162168,0.00079767,120]
[358314982,1744925446755,-677.58,0.00079768,120]
[358314983,1744925446765,-500.0,0.00079768,90]
[358314984,1744925446775,-500.0,0.00079768,90]
[358314985,1744925446783,-500.0,0.00079769,2]
[358314986,1744925446792,-500.0,0.00079769,2]
[358314987,1744925446802,-500.0,0.00079769,2]
[358314988,1744925446811,-500.0,0.00079769,2]
[358314989,1744925446821,-268.42798199,0.00079769,2]
[358314990,1744925446830,-539.02670935,0.00079769,120]
[358314991,1744925446839,-500.0,0.00079769,90]
[358314992,1744925446848,-500.0,0.00079769,90]
[358314993,1744925446858,-21479.4,0.00079769,7]
[358314994,1744925446867,-21479.4,0.00079769,7]
[358314995,1744925446876,-21479.4,0.00079769,7]
[358314996,1744925446886,-21479.4,0.00079769,7]
[358314997,1744925446895,-21479.4,0.00079769,7]
[358314998,1744925446905,-500.0,0.00079769,120]
[358314999,1744925446914,-384.104,0.00079769,120]
[358315000,1744925446924,-500.0,0.00079769,120]
[358315001,1744925446933,-500.0,0.00079769,120]
[358315002,1744925447040,-500.0,0.00079769,120]
[358315003,1744925447051,-500.0,0.00079769,120]
[358315004,1744925447061,-289.37153558,0.00079769,120]
[358315005,1744925447071,-677.58,0.00079769,120]
[358315006,1744925447080,-677.58,0.00079769,120]
[358315007,1744925447090,-677.58,0.00079769,120]
[358315008,1744925447100,-677.58,0.00079769,120]
[358315009,1744925447110,-677.58,0.00079769,120]
[358315010,1744925447119,-500.0,0.00079769,120]
[358315011,1744925447130,-500.0,0.00079769,120]
[358315012,1744925447139,-500.0,0.00079769,120]
[358315013,1744925447150,-500.0,0.00079769,120]
[358315014,1744925447160,-500.0,0.00079769,120]
[358315015,1744925447169,-712.2,0.00079769,120]
[358315016,1744925447180,-712.2,0.00079769,120]
[358315017,1744925447189,-712.2,0.00079769,120]
[358315018,1744925447199,-712.2,0.00079769,120]
[358315019,1744925447208,-712.2,0.00079769,120]
[358315020,1744925447218,-500.0,0.00079769,120]
[358315021,1744925447228,-500.0,0.00079769,120]
[358315022,1744925447237,-500.0,0.00079769,120]
[358315023,1744925447247,-500.0,0.00079769,120]
[358315024,1744925447256,-500.0,0.00079769,120]
[358315025,1744925447266,-587.79,0.00079769,120]
[358315026,1744925447275,-587.79,0.00079769,120]
[358315027,1744925447285,-587.79,0.00079769,120]
[358315028,1744925447294,-587.79,0.00079769,120]
[358315029,1744925447304,-587.79,0.00079769,120]
[358315030,1744925447314,-2834.74,0.00079769,120]
[358315031,1744925447324,-2834.74,0.00079769,120]
[358315032,1744925447334,-2834.74,0.00079769,120]
[358315033,1744925447344,-2834.74,0.00079769,120]
[358315034,1744925447354,-2834.74,0.00079769,120]
[358315035,1744925447363,-26989.9046431,0.0007977,58]
[358315036,1744925447373,-503.4083902,0.0007977,58]
[358315037,1744925447383,-1137848.80434596,0.0007977,120]
[358315038,1744925448031,-2986.34339697,0.0007977,120]
[358315039,1744925448043,-4287.36,0.0007977,120]
[358315040,1744925448055,-797.6518777,0.0007977,120]
[358315041,1744925448067,-5371.0,0.0007977,120]
[358315042,1744925448079,-1500.0,0.0007977,120]
[358315043,1744925448091,-2518.0155,0.0007977,120]
[358315044,1744925448119,-4540.0,0.0007977,120]
[358315045,1744925448131,-17652.76898203,0.0007977,120]
[358315046,1744925448143,-798.57329629,0.0007977,120]
[358315047,1744925448593,-5489.17330241,0.0007977,120]
[358315048,1744925448609,-1255.870532,0.0007977,120]
[358315049,1744925448621,-1208.03864413,0.0007977,120]
[358315050,1744925448880,-150.0,0.00077238,60]
[358315051,1744925448889,-150.0,0.00077239,60]
[358315052,1744925448899,-150.0,0.0007724,60]
[358315053,1744925448909,-150.0,0.00077252,60]
[358315054,1744925448919,-150.0,0.00077257,60]
[358315055,1744925448929,-150.0,0.00077263,60]
[358315056,1744925448939,-150.0,0.00077272,60]
[358315057,1744925448948,-150.0,0.00077273,60]
[358315058,1744925448958,-150.0,0.00077283,60]
[358315059,1744925448968,-150.0,0.00077287,60]
[358315060,1744925448978,-150.0,0.00077291,60]
[358315061,1744925448987,-150.0,0.00077293,60]
[358315062,1744925448997,-150.0,0.00077295,60]
[358315063,1744925449007,-150.0,0.00077297,60]
[358315064,1744925449016,-150.0,0.000773,60]
[358315065,1744925449026,-150.0,0.00077314,60]
[358315066,1744925449036,-150.0,0.00077316,60]
[358315067,1744925449045,-150.0,0.00077319,60]
[358315068,1744925449055,-150.0,0.00077324,60]
[358315069,1744925449064,-150.0,0.00077326,60]
[358315070,1744925449074,-150.0,0.00077327,60]
[358315071,1744925449083,-150.0,0.00077339,60]
[358315072,1744925449093,-150.0,0.0007734,60]
[358315073,1744925449103,-150.0,0.00077351,60]
[358315074,1744925449113,-150.0,0.00077353,60]
[358315075,1744925449122,-150.0,0.00077354,60]
[358315076,1744925449132,-150.0,0.00077361,60]
[358315077,1744925449142,-150.0,0.00077362,60]
[358315078,1744925449151,-150.0,0.00077368,60]
[358315079,1744925449160,-150.0,0.00077368,60]
[358315080,1744925449170,-150.0,0.0007737,60]
[358315081,1744925449179,-150.0,0.00077371,60]
[358315082,1744925449188,-150.0,0.00077379,60]
[358315083,1744925449198,-150.0,0.00077382,60]
[358315084,1744925449207,-150.0,0.00077384,60]
[358315085,1744925449217,-150.0,0.00077386,60]
[358315086,1744925449226,-150.0,0.00077387,60]
[358315087,1744925449237,-150.0,0.00077387,60]
[358315088,1744925449247,-150.0,0.0007739,60]
[358315089,1744925449257,-30.31420182,0.00077396,60]
[358315090,1744925449281,-150.0,0.00077244,60]
[358315091,1744925449291,-150.0,0.00077306,60]
[358315092,1744925449300,-150.0,0.0007731,60]
[358315093,1744925449311,-119.68579818,0.00077396,60]
[358315094,1744925449388,-150.0,0.000774,60]
[358315095,1744925449413,-150.0,0.00077413,60]
[358315096,1744925449424,-150.0,0.00077415,60]
[358315097,1744925449434,-66.45100182,0.00077424,60]
[358315098,1744925449449,-83.54899818,0.00077424,60]
[358315099,1744925449464,-150.0,0.00077429,60]
[358315100,1744925449474,-150.0,0.0007743,60]
[358315101,1744925449486,-24.75663828,0.00077431,60]
[358315102,1744925449499,-125.24336172,0.00077431,60]
[358315103,1744925449509,-137.48163955,0.00077444,60]
[358315104,1744925449746,-150.0,0.0007744,60]
[358315105,1744925449757,-12.51836045,0.00077444,60]
[358315106,1744925449766,-150.0,0.00077447,60]
[358315107,1744925449776,-150.0,0.00077447,60]
[358315108,1744925449786,-150.0,0.0007745,60]
[358315109,1744925449795,-150.0,0.00077456,60]
[358315110,1744925449805,-150.0,0.00077461,60]
[358315111,1744925449815,-150.0,0.00077462,60]
[358315112,1744925449825,-150.0,0.00077465,60]
[358315113,1744925449835,-150.0,0.00077483,60]
[358315114,1744925449845,-150.0,0.00077485,60]
[358315115,1744925449855,-150.0,0.0007749,60]
[358315116,1744925449864,-150.0,0.00077493,60]
[358315117,1744925449874,-1273.0,0.000776,14]
[358315118,1744925449883,-1620.59753948,0.0007977,120]
[358315119,1744925449894,-5321.3857415,0.0007977,120]
[358315120,1744925449906,-6804.41684153,0.0007977,120]
[358315121,1744925449916,-151.0,0.0007977,120]
[358315122,1744925449926,-151.0,0.0007977,120]
[358315123,1744925449935,-151.0,0.0007977,120]
[358315124,1744925449945,-3000.0,0.000798,120]
[358315125,1744925449955,-2748.37,0.000798,60]
[358315126,1744925449965,-300.0,0.000798,29]
[358315127,1744925449975,-522.63719093,0.00079867,120]
[358315128,1744925449985,-22011.72660431,0.000799,120]
[358315129,1744925449995,-2000.0,0.000799,120]
[358315130,1744925450004,-150.0,0.000799,120]
[358315131,1744925450014,-5295.6923452,0.000799,30]
[358315132,1744925450023,-165.36811531,0.000799,64]
[358315133,1744925450033,-1220.21782091,0.000799,15]
[358315134,1744925450043,-300.0,0.000799,29]
[358315135,1744925450053,-183.58803248,0.0007999,7]
[358315136,1744925450062,-605.921,0.00079997,120]
[358315137,1744925450072,-1000.0,0.00079998,120]
[358315138,1744925450082,-21479.4,0.00079998,7]
[358315139,1744925450092,-21479.4,0.00079998,7]
[358315140,1744925450101,-677.58,0.00079998,120]
[358315141,1744925450111,-677.58,0.00079998,120]
[358315142,1744925450121,-677.58,0.00079998,120]
[358315143,1744925450131,-677.58,0.00079998,120]